[Event "84th Armenian-HL-ch 2024"]
[Site "Yerevan"]
[Date "2024.01.13"]
[Round "2.1"]
[White "Chaqryan, Erik"]
[Black "Hovhannisyan, Robert"]
[Result "1/2-1/2"]
[ECO "C54"]
[WhiteElo "2308"]
[BlackElo "2611"]
[Annotator "RC"]
[PlyCount "248"]
[EventDate "2024.01.11"]
[EventType "tourn"]
[EventCountry "ARM"]
[SourceTitle "playchess.com"]
[Source "ChessBase"]
[SourceQuality "1"]
[TimeControl "40/5400+30:1800+30"]

1. e4 {[%emt 0:00:33]} e5 {[%emt 0:00:18]} 2. Nf3 {[%emt 0:00:12]} Nc6 {[%emt 0:00:04]} 3. Bc4 {[%emt 0:00:15]} Bc5 {[%emt 0:00:08]} 4. c3 {[%emt 0:01:07]} Nf6 {[%emt 0:00:06]} 5. d3 {[%emt 0:00:09]} d6 {[%emt 0:00:41]} 6. O-O {[%emt 0:00:36]} a5 {[%emt 0:00:44]} 7. h3 {[%emt 0:00:38]} O-O {[%emt 0:00:56]} 8. Re1 {[%emt 0:02:35]} Be6 {[%emt 0:00:56]} 9. Bb5 {[%emt 0:06:45]} Ba7 {[%emt 0:00:46]} 10. Nbd2 {[%emt 0:06:41]} Ne7 {[%emt 0:00:59]} 11. d4 {[%emt 0:15:29]} Ng6 {[%emt 0:00:43]} 12. Nf1 {[%emt 0:02:01]} exd4 {[%emt 0:00:50]} 13. Nxd4 {[%emt 0:00:55]} d5 {[%emt 0:01:28]} 14. exd5 {[%emt 0:02:15]} Nxd5 {[%emt 0:01:29]} 15. Ng3 {[%emt 0:07:07]} c6 {[%emt 0:00:55]} 16. Bf1 {[%emt 0:00:21]} Qc7 {[%emt 0:00:45]} 17. Qc2 {[%emt 0:20:33]} Rae8 {[%emt 0:08:12]} 18. Bd2 {[%emt 0:01:28]} Bc8 {[%emt 0:10:50]} 19. a3 {[%emt 0:09:05]} Bb8 {[%emt 0:12:46]} 20. Bd3 {[%emt 0:13:19]} Ndf4 {[%emt 0:03:41]} 21. Bf5 {[%emt 0:00:49]} c5 {[%emt 0:14:01]} 22. Bxf4 {[%emt 0:03:21]} Nxf4 {[%emt 0:01:39]} 23. Nf3 {[%emt 0:01:06]} Bxf5 {[%emt 0:04:20]} 24. Qxf5 {[%emt 0:00:22]} g6 {[%emt 0:00:58]} 25. Qc2 {[%emt 0:03:05]} c4 {[%emt 0:06:36]} 26. Rxe8 {[%emt 0:01:40]} Rxe8 {[%emt 0:00:06]} 27. Re1 {[%emt 0:00:05]} Rxe1+ {[%emt 0:03:22]} 28. Nxe1 {[%emt 0:00:03]} Ba7 {[%emt 0:00:38]} 29. Ne2 {[%emt 0:01:01]} Ne6 {[%emt 0:03:22]} 30. Nf3 {[%emt 0:00:41]} Nc5 {[%emt 0:03:32]} 31. Ned4 {[%emt 0:00:39]} Qe7 {[%emt 0:02:36]} 32. Qd2 {[%emt 0:00:54]} Qe4 {[%emt 0:02:50]} 33. Qg5 {[%emt 0:00:30]} Nd3 {[%emt 0:05:36]} 34. Qxa5 {[%emt 0:00:24]} Bxd4 {[%emt 0:01:11]} 35. Qd8+ {[%emt 0:00:06]} Kg7 {[%emt 0:00:05]} 36. Qxd4+ {[%emt 0:00:34]} Qxd4 {[%emt 0:00:04]} 37. Nxd4 {[%emt 0:00:04]} Nxb2 {[%emt 0:00:19]} 38. Kf1 {[%emt 0:00:29]} Na4 {[%emt 0:02:58]} 39. Nb5 {[%emt 0:00:11]} Kf6 {[%emt 0:00:14]} 40. Nd6 {[%emt 0:00:00]} Ke6 {[%emt 0:00:00]} 41. Nxc4 {[%emt 0:07:55]} Nxc3 {[%emt 0:03:15]} 42. Ke1 {[%emt 0:17:05]} Kd5 {[%emt 0:00:27]} 43. Nb6+ {[%emt 0:03:03]} Kc5 {[%emt 0:02:57]} 44. Nd7+ {[%emt 0:00:09]} Kd6 {[%emt 0:01:23]} 45. Nf6 {[%emt 0:02:09]} h5 {[%emt 0:02:33]} 46. Kd2 {[%emt 0:01:37]} Nb1+ {[%emt 0:00:53]} 47. Kd3 {[%emt 0:00:04]} Nxa3 {[%emt 0:00:33]} 48. Ne4+ {[%emt 0:00:30]} Kd5 {[%emt 0:00:39]} 49. f4 {[%emt 0:01:44]} Nb5 {[%emt 0:02:46]} 50. g4 {[%emt 0:00:29]} hxg4 {[%emt 0:03:59]} 51. hxg4 {[%emt 0:00:03]} Nd6 {[%emt 0:00:04]} 52. Nc3+ {[%emt 0:01:53]} Kc5 {[%emt 0:00:16]} 53. Na4+ {[%emt 0:00:25]} Kb5 {[%emt 0:00:27]} 54. Nc3+ {[%emt 0:00:05]} Kb4 {[%emt 0:00:32]} 55. Na2+ {[%emt 0:01:31]} Ka3 {[%emt 0:07:54]} 56. Nc1 {[%emt 0:00:30]} b5 {[%emt 0:01:13]} 57. Kd4 {[%emt 0:00:12]} b4 {[%emt 0:01:40]} 58. Ke5 {[%emt 0:01:08]} Ne8 {[%emt 0:00:36]} 59. f5 {[%emt 0:00:38]} g5 {[%emt 0:02:09]} 60. f6 {[%emt 0:00:06]} Kb2 {[%emt 0:00:14]} 61. Nd3+ {[%emt 0:00:31]} Kc3 {[%emt 0:00:12]} 62. Nc5 {[%emt 0:01:01]} Kc4 {[%emt 0:02:38]} 63. Na4 {[%emt 0:00:08]} b3 {[%emt 0:01:13]} 64. Kf5 {[%emt 0:00:04]} Nd6+ {[%emt 0:11:20]} 65. Kxg5 {[%emt 0:00:05]} Ne4+ {[%emt 0:00:27]} 66. Kf5 {[%emt 0:00:31]} Nc5 {[%emt 0:00:28]} 67. Nb2+ {[%emt 0:00:04]} Kc3 {[%emt 0:00:06]} 68. Nd1+ {[%emt 0:00:04]} Kc2 {[%emt 0:00:24]} 69. Ne3+ {[%emt 0:00:04]} Kd2 {[%emt 0:00:32]} 70. Nc4+ {[%emt 0:00:13]} Kc3 {[%emt 0:00:03]} 71. Na3 {[%emt 0:02:15]} b2 {[%emt 0:01:18]} 72. g5 {[%emt 0:00:04]} Kb3 {[%emt 0:00:47]} 73. Nb1 {[%emt 0:00:05]} Ka2 {[%emt 0:00:18]} 74. Nc3+ {[%emt 0:00:34]} Kb3 {[%emt 0:00:10]} 75. Nb1 {[%emt 0:00:05]} Ka2 {[%emt 0:00:52]} 76. Nc3+ {[%emt 0:00:04]} Ka1 {[%emt 0:00:04]} 77. g6 {[%emt 0:00:04]} fxg6+ {[%emt 0:01:12]} 78. Kxg6 {[%emt 0:00:06]} Na4 {[%emt 0:00:15]} 79. f7 {[%emt 0:00:40]} Nxc3 {[%emt 0:00:03]} 80. f8=Q {[%emt 0:00:07]} b1=Q+ {[%emt 0:00:02]} 81. Qf5 {[%emt 0:00:22]} Qe1 {[%emt 0:00:31]} 82. Qf6 {[%emt 0:01:45]} Kb2 {[%emt 0:00:15]} 83. Kg7 {[%emt 0:00:23]} Qe3 {[%emt 0:00:27]} 84. Kh8 {[%emt 0:00:24]} Kc2 {[%emt 0:01:35]} 85. Qc6 {[%emt 0:00:20]} Qe5+ {[%emt 0:00:20]} 86. Kg8 {[%emt 0:00:42]} Kd3 {[%emt 0:00:07]} 87. Qf3+ {[%emt 0:00:30]} Kc4 {[%emt 0:00:48]} 88. Qf1+ {[%emt 0:00:21]} Kc5 {[%emt 0:00:59]} 89. Qf8+ {[%emt 0:00:23]} Kb5 {[%emt 0:00:08]} 90. Qg7 {[%emt 0:00:46]} Qe6+ {[%emt 0:00:21]} 91. Qf7 {[%emt 0:00:31]} Qg4+ {[%emt 0:00:10]} 92. Qg7 {[%emt 0:00:05]} Qc4+ {[%emt 0:00:13]} 93. Qf7 {[%emt 0:00:06]} Nd5 {[%emt 0:00:07]} 94. Qf5 {[%emt 0:01:58]} Kc5 {[%emt 0:00:59]} 95. Kh7 {[%emt 0:01:13]} Qh4+ {[%emt 0:00:16]} 96. Kg7 {[%emt 0:00:07]} Qg3+ {[%emt 0:00:36]} 97. Kh8 {[%emt 0:00:36]} Qh4+ {[%emt 0:01:45]} 98. Kg7 {[%emt 0:00:52]} Kd4 {[%emt 0:00:08]} 99. Qe6 {[%emt 0:01:19]} Qg5+ {[%emt 0:00:22]} 100. Kh8 {[%emt 0:00:37]} Qd8+ {[%emt 0:00:12]} 101. Kg7 {[%emt 0:00:35]} Qc7+ {[%emt 0:00:08]} 102. Kh8 {[%emt 0:00:44]} Nf4 {[%emt 0:00:12]} 103. Qe8 {[%emt 0:00:35]} Qd6 {[%emt 0:01:21]} 104. Qf7 {[%emt 0:00:27]} Ke5 {[%emt 0:00:41]} 105. Qg7+ {[%emt 0:00:25]} Kf5 {[%emt 0:00:11]} 106. Qf7+ {[%emt 0:00:13]} Kg5 {[%emt 0:00:08]} 107. Kh7 {[%emt 0:00:51]} Ng6 {[%emt 0:00:57]} 108. Qe8 {[%emt 0:00:29]} Qh2+ {[%emt 0:01:16]} 109. Kg7 {[%emt 0:00:34]} Qc7+ {[%emt 0:00:22]} 110. Kg8 {[%emt 0:00:11]} Ne7+ {[%emt 0:00:22]} 111. Kf8 {[%emt 0:00:49]} Nf5 {[%emt 0:00:12]} 112. Qe6 {[%emt 0:00:21]} Qd8+ {[%emt 0:00:46]} 113. Kf7 {[%emt 0:00:18]} Qc7+ {[%emt 0:00:38]} 114. Kf8 {[%emt 0:00:14]} Qb8+ {[%emt 0:00:19]} 115. Kf7 {[%emt 0:00:11]} Qa7+ {[%emt 0:00:30]} 116. Kf8 {[%emt 0:00:07]} Qc5+ {[%emt 0:00:49]} 117. Kf7 {[%emt 0:00:18]} Nd6+ {[%emt 0:00:13]} 118. Kg8 {[%emt 0:00:12]} Nf5 {[%emt 0:00:35]} 119. Kf7 {[%emt 0:00:17]} Qa7+ {[%emt 0:00:05]} 120. Kf8 {[%emt 0:00:05]} Qb7 {[%emt 0:00:19]} 121. Qg8+ {[%emt 0:00:45]} Kf6 {[%emt 0:00:15]} 122. Qh8+ {[%emt 0:00:05]} Kg6 {[%emt 0:00:04]} 123. Qg8+ {[%emt 0:00:03]} Ng7 {[%emt 0:00:08]} 124. Qh7+ {[%emt 0:00:04]} Kxh7 {[%emt 0:03:02]} 1/2-1/2

[Event "84th Armenian-HL-ch 2024"]
[Site "Yerevan"]
[Date "2024.01.13"]
[Round "2.2"]
[White "Andriasian, Zaven"]
[Black "Piliposyan, Robert"]
[Result "1-0"]
[ECO "C54"]
[WhiteElo "2581"]
[BlackElo "2367"]
[Annotator "RC"]
[PlyCount "59"]
[EventDate "2024.01.11"]
[EventType "tourn"]
[EventCountry "ARM"]
[SourceTitle "playchess.com"]
[Source "ChessBase"]
[SourceQuality "1"]
[TimeControl "40/5400+30:1800+30"]

1. e4 {[%emt 0:00:06]} e5 {[%emt 0:00:11]} 2. Nf3 {[%emt 0:00:34]} Nc6 {[%emt 0:00:10]} 3. Bc4 {[%emt 0:00:06]} Nf6 {[%emt 0:00:05]} 4. d3 {[%emt 0:00:07]} Bc5 {[%emt 0:00:06]} 5. Nbd2 {[%emt 0:00:18]} O-O {[%emt 0:00:07]} 6. O-O {[%emt 0:00:09]} d6 {[%emt 0:00:41]} 7. c3 {[%emt 0:02:02]} a5 {[%emt 0:00:14]} 8. h3 {[%emt 0:01:24]} Ba7 {[%emt 0:01:19]} 9. Re1 {[%emt 0:07:30]} Be6 {[%emt 0:00:23]} 10. Bb5 {[%emt 0:00:37]} Ne7 {[%emt 0:01:02]} 11. d4 {[%emt 0:03:13]} Ng6 {[%emt 0:00:27]} 12. Nf1 {[%emt 0:00:52]} exd4 {[%emt 0:00:10]} 13. Nxd4 {[%emt 0:01:17]} d5 {[%emt 0:00:07]} 14. exd5 {[%emt 0:13:48]} Qxd5 {[%emt 0:00:22]} 15. Nxe6 {[%emt 0:04:56]} fxe6 {[%emt 0:06:18]} 16. Qxd5 {[%emt 0:02:53]} exd5 {[%emt 0:01:49]} 17. Be3 {[%emt 0:00:18]} Bxe3 {[%emt 0:07:15]} 18. Nxe3 {[%emt 0:00:06]} c6 {[%emt 0:06:23]} 19. Bf1 {[%emt 0:00:09]} Rae8 {[%emt 0:23:58]} 20. Rad1 {[%emt 0:07:37]} b5 {[%emt 0:13:47]} 21. Nc2 {[%emt 0:09:48]} Rxe1 {[%emt 0:13:35]} 22. Rxe1 {[%emt 0:00:17]} Re8 {[%emt 0:00:17]} 23. Rxe8+ {[%emt 0:04:54]} Nxe8 {[%emt 0:00:16]} 24. Nd4 {[%emt 0:00:02]} Ne7 {[%emt 0:00:18]} 25. Nxc6 {[%emt 0:01:50]} Nxc6 {[%emt 0:00:31]} 26. Bxb5 {[%emt 0:00:11]} Ne5 {[%emt 0:01:02]} 27. Bxe8 {[%emt 0:00:20]} Nd3 {[%emt 0:00:16]} 28. Kf1 {[%emt 0:01:59]} Nxb2 {[%emt 0:00:06]} 29. Ke2 {[%emt 0:00:32]} Kf8 {[%emt 0:00:33]} 30. Bc6 {[%emt 0:01:41]} 1-0

[Event "84th Armenian-HL-ch 2024"]
[Site "Yerevan"]
[Date "2024.01.13"]
[Round "2.3"]
[White "Petrosyan, Manuel"]
[Black "Ter-Sahakyan, Samvel"]
[Result "1/2-1/2"]
[ECO "E04"]
[WhiteElo "2627"]
[BlackElo "2649"]
[Annotator "TA"]
[PlyCount "39"]
[EventDate "2024.01.11"]
[EventType "tourn"]
[EventCountry "ARM"]
[SourceTitle "playchess.com"]
[Source "ChessBase"]
[SourceQuality "1"]
[TimeControl "40/5400+30:1800+30"]

{[%evp 14,39,0,-3,11,-14,-23,-30,0,-16,-36,-54,-47,-58,0,0,38,31,47,26,28,10,21,12,19,0,0,0]} 1. d4 {[%emt 0:05:37]} Nf6 {[%emt 0:00:22]} 2. c4 {[%emt 0:00:07]} e6 {[%emt 0:00:07]} 3. Nf3 {[%emt 0:00:20]} d5 {[%emt 0:00:06]} 4. g3 {[%emt 0:00:18]} dxc4 {[%emt 0:07:41]} 5. Bg2 {[%emt 0:00:27]} a6 {[%emt 0:00:08]} 6. O-O {[%emt 0:03:52]} Nc6 {[%emt 0:00:29]} 7. a4 {[%emt 0:03:30]} Rb8 {[%emt 0:02:23]} 8. a5 {[%emt 0:05:13]} Bb4 {[%emt 0:00:10][%cal Oe8g8] E04: Open Catalan: 5 Nf3.} 9. Bd2 {[%emt 0:03:05]} Bxd2 {[%emt 0:07:42]} 10. Qxd2 {[%emt 0:02:40]} b5 {[%emt 0:07:23] Black has an edge.} (10... b6 $5 {[%cal Rc6a5]}) 11. axb6 {[%emt 0:02:26]} cxb6 {[%emt 0:00:24]} 12. Ne5 {[%emt 0:01:45]} Nxe5 {[%emt 0:03:56]} 13. dxe5 {[%emt 0:00:12]} Nd5 {[%emt 0:03:44]} ({Black should play} 13... Nd7 $1 $15) 14. Rd1 $11 {[%emt 0:05:07][%cal Oe2e4] [#] Threatens to win with e4!} Qc7 {[%emt 0:20:01]} 15. Nc3 {[%emt 0:20:55]} O-O $1 {[%emt 0:08:52]} 16. Nxd5 {[%emt 0:02:34]} exd5 {[%emt 0:00:05]} 17. Qxd5 {[%emt 0:00:15] [#]} Be6 $146 {[%emt 0:02:38] The position is equal.} ({Predecessor:} 17... b5 18. Qd6 Qa7 19. h4 Rb6 20. Qc5 Rb7 21. Qxa7 Rxa7 22. Rd6 g6 23. f4 Kg7 {1-0 Iliaguev,N (2360)-Mikhalevski,A (2430) ISR-chT Israel 2019 (3.6)}) 18. Qd6 {[%emt 0:03:32]} Qc8 {[%emt 0:00:19]} 19. Bd5 {[%emt 0:04:18]} Bxd5 {[%emt 0:06:03]} 20. Qxd5 {[%emt 0:04:29] Weighted Error Value: White=0.10 (very precise) /Black=0.13 (very precise)} 1/2-1/2

[Event "84th Armenian-HL-ch 2024"]
[Site "Yerevan"]
[Date "2024.01.13"]
[Round "2.4"]
[White "Harutyunyan, Tigran K."]
[Black "Davtyan, Artur"]
[Result "1/2-1/2"]
[ECO "E05"]
[WhiteElo "2523"]
[BlackElo "2477"]
[Annotator "RC"]
[PlyCount "115"]
[EventDate "2024.01.11"]
[EventType "tourn"]
[EventCountry "ARM"]
[SourceTitle "playchess.com"]
[Source "ChessBase"]
[SourceQuality "1"]
[TimeControl "40/5400+30:1800+30"]

1. d4 {[%emt 0:00:04]} Nf6 {[%emt 0:01:08]} 2. Nf3 {[%emt 0:00:27]} d5 {[%emt 0:00:17]} 3. c4 {[%emt 0:00:14]} e6 {[%emt 0:00:05]} 4. g3 {[%emt 0:00:28]} Be7 {[%emt 0:00:06]} 5. Bg2 {[%emt 0:00:19]} O-O {[%emt 0:00:05]} 6. O-O {[%emt 0:00:08]} dxc4 {[%emt 0:00:19]} 7. Qc2 {[%emt 0:00:08]} a6 {[%emt 0:00:12]} 8. a4 {[%emt 0:00:19]} Bd7 {[%emt 0:00:31]} 9. Qxc4 {[%emt 0:00:26]} Bc6 {[%emt 0:00:08]} 10. Bf4 {[%emt 0:00:15]} a5 {[%emt 0:07:16]} 11. Nc3 {[%emt 0:01:02]} Na6 {[%emt 0:00:51]} 12. Rac1 {[%emt 0:01:53]} Nb4 {[%emt 0:06:46]} 13. Ne5 {[%emt 0:04:49]} Bxg2 {[%emt 0:04:25]} 14. Kxg2 {[%emt 0:00:20]} c6 {[%emt 0:08:32]} 15. e4 {[%emt 0:01:46]} Qb6 {[%emt 0:06:58]} 16. Rfd1 {[%emt 0:01:08]} Rfd8 {[%emt 0:01:18]} 17. h4 {[%emt 0:02:55]} Qa6 {[%emt 0:05:11]} 18. Qxa6 {[%emt 0:21:20]} Rxa6 {[%emt 0:02:19]} 19. Kf3 {[%emt 0:01:57]} Bd6 {[%emt 0:01:18]} 20. g4 {[%emt 0:13:08]} Raa8 {[%emt 0:15:56]} 21. Nb1 {[%emt 0:07:24]} h5 {[%emt 0:03:16]} 22. g5 {[%emt 0:00:43]} Nd7 {[%emt 0:01:30]} 23. Nc4 {[%emt 0:06:32]} Bxf4 {[%emt 0:00:17]} 24. Kxf4 {[%emt 0:00:05]} Nf8 {[%emt 0:09:53]} 25. Kg3 {[%emt 0:03:54]} Ng6 {[%emt 0:05:22]} 26. Nba3 {[%emt 0:01:52]} f5 {[%emt 0:07:31]} 27. f3 {[%emt 0:05:38]} fxe4 {[%emt 0:04:32]} 28. fxe4 {[%emt 0:00:03]} e5 {[%emt 0:01:48]} 29. dxe5 {[%emt 0:02:42]} Nd3 {[%emt 0:01:43]} 30. Rc3 {[%emt 0:00:56]} Nc5 {[%emt 0:03:44]} 31. Rxd8+ {[%emt 0:04:01]} Rxd8 {[%emt 0:00:02]} 32. Re3 {[%emt 0:00:12]} Rd4 {[%emt 0:00:29]} 33. e6 {[%emt 0:01:38]} Nxe6 {[%emt 0:02:06]} 34. Nxa5 {[%emt 0:00:08]} Nc5 {[%emt 0:00:05]} 35. Kh3 {[%emt 0:09:22]} Nxe4 {[%emt 0:00:47]} 36. Nxb7 {[%emt 0:02:10]} Rxa4 {[%emt 0:01:04]} 37. Nd8 {[%emt 0:01:54]} Nf4+ {[%emt 0:00:07]} 38. Kh2 {[%emt 0:00:03]} Rd4 {[%emt 0:00:08]} 39. Nb1 {[%emt 0:00:59]} Rxd8 {[%emt 0:01:23]} 40. Rxe4 {[%emt 0:00:00]} Rb8 {[%emt 0:00:00]} 41. Rxf4 {[%emt 0:01:31]} Rxb2+ {[%emt 0:00:02]} 42. Kg3 {[%emt 0:00:11]} Rb3+ {[%emt 0:02:06]} 43. Rf3 {[%emt 0:00:21]} Rxb1 {[%emt 0:00:04]} 44. Rc3 {[%emt 0:00:06]} Rb6 {[%emt 0:00:03]} 45. g6 {[%emt 0:00:21]} Kf8 {[%emt 0:02:47]} 46. Rf3+ {[%emt 0:04:12]} Ke7 {[%emt 0:00:04]} 47. Rf7+ {[%emt 0:00:14]} Ke6 {[%emt 0:00:01]} 48. Rxg7 {[%emt 0:01:00]} Kf6 {[%emt 0:00:20]} 49. Rg8 {[%emt 0:00:07]} Rb3+ {[%emt 0:00:54]} 50. Kf2 {[%emt 0:01:14]} Rc3 {[%emt 0:00:10]} 51. Ke2 {[%emt 0:02:24]} Rc4 {[%emt 0:02:00]} 52. Kf3 {[%emt 0:01:09]} Rxh4 {[%emt 0:03:27]} 53. g7 {[%emt 0:01:08]} Rc4 {[%emt 0:00:05]} 54. Rh8 {[%emt 0:00:19]} Kxg7 {[%emt 0:00:04]} 55. Rxh5 {[%emt 0:00:07]} Rd4 {[%emt 0:00:09]} 56. Ke3 {[%emt 0:00:19]} Rd6 {[%emt 0:00:05]} 57. Rf5 {[%emt 0:00:18]} Kg6 {[%emt 0:00:06]} 58. Rf8 {[%emt 0:00:10]} 1/2-1/2

[Event "84th Armenian-HL-ch 2024"]
[Site "Yerevan"]
[Date "2024.01.13"]
[Round "2.5"]
[White "Gharibyan, Mamikon"]
[Black "Tiraturyan, David"]
[Result "1-0"]
[ECO "E73"]
[WhiteElo "2504"]
[BlackElo "2258"]
[Annotator "RC"]
[PlyCount "59"]
[EventDate "2024.01.11"]
[EventType "tourn"]
[EventCountry "ARM"]
[SourceTitle "playchess.com"]
[Source "ChessBase"]
[SourceQuality "1"]
[TimeControl "40/5400+30:1800+30"]

1. d4 {[%emt 0:00:06]} Nf6 {[%emt 0:00:54]} 2. c4 {[%emt 0:00:13]} g6 {[%emt 0:00:06]} 3. Nc3 {[%emt 0:01:00]} Bg7 {[%emt 0:00:06]} 4. e4 {[%emt 0:00:06]} d6 {[%emt 0:00:19]} 5. Be2 {[%emt 0:00:18]} O-O {[%emt 0:00:27]} 6. Be3 {[%emt 0:00:16]} c5 {[%emt 0:00:27]} 7. d5 {[%emt 0:00:10]} Qb6 {[%emt 0:00:06]} 8. Rb1 {[%emt 0:06:51]} Qa5 {[%emt 0:01:40]} 9. Bd2 {[%emt 0:06:52]} e6 {[%emt 0:01:10]} 10. Nf3 {[%emt 0:01:15]} exd5 {[%emt 0:00:06]} 11. cxd5 {[%emt 0:01:25]} Bg4 {[%emt 0:03:07]} 12. O-O {[%emt 0:00:58]} Re8 {[%emt 0:00:26]} 13. Qb3 {[%emt 0:08:52]} Nbd7 {[%emt 0:13:48]} 14. Qxb7 {[%emt 0:26:39]} Rab8 {[%emt 0:04:24]} 15. Qc6 {[%emt 0:01:41]} Bxf3 {[%emt 0:06:03]} 16. gxf3 {[%emt 0:03:04]} Ne5 {[%emt 0:00:35]} 17. Qa4 {[%emt 0:01:39]} Qd8 {[%emt 0:03:01]} 18. Qd1 {[%emt 0:17:39]} Rb4 {[%emt 0:03:11]} 19. Be3 {[%emt 0:01:44]} Rd4 {[%emt 0:01:38]} 20. Qc1 {[%emt 0:03:28]} Nh5 {[%emt 0:09:28]} 21. Kg2 {[%emt 0:04:32]} h6 {[%emt 0:04:34]} 22. b4 {[%emt 0:08:01]} g5 {[%emt 0:10:02]} 23. bxc5 {[%emt 0:00:15]} Ng6 {[%emt 0:00:12]} 24. c6 {[%emt 0:01:30]} Qc8 {[%emt 0:01:01]} 25. Rg1 {[%emt 0:00:44]} Be5 {[%emt 0:20:13]} 26. Qf1 {[%emt 0:00:21]} Nhf4+ {[%emt 0:01:50]} 27. Kh1 {[%emt 0:00:15]} Nh3 {[%emt 0:01:59]} 28. Ba6 {[%emt 0:01:30]} Qd8 {[%emt 0:01:58]} 29. Qxh3 {[%emt 0:00:18]} Qa5 {[%emt 0:00:03]} 30. Ne2 {[%emt 0:01:05]} 1-0

[Event "84th Armenian-HL-ch 2024"]
[Site "Yerevan"]
[Date "2024.01.14"]
[Round "3.1"]
[White "Piliposyan, Robert"]
[Black "Harutyunyan, Tigran K."]
[Result "1/2-1/2"]
[ECO "E46"]
[WhiteElo "2367"]
[BlackElo "2523"]
[Annotator "RC"]
[PlyCount "146"]
[EventDate "2024.01.11"]
[EventType "tourn"]
[EventCountry "ARM"]
[SourceTitle "playchess.com"]
[Source "ChessBase"]
[SourceQuality "1"]
[TimeControl "40/5400+30:1800+30"]

1. d4 {[%emt 0:00:04]} Nf6 {[%emt 0:00:18]} 2. c4 {[%emt 0:00:08]} e6 {[%emt 0:00:07]} 3. Nc3 {[%emt 0:00:10]} Bb4 {[%emt 0:01:03]} 4. e3 {[%emt 0:00:22]} O-O {[%emt 0:01:15]} 5. Bd2 {[%emt 0:00:13]} c5 {[%emt 0:04:02]} 6. a3 {[%emt 0:00:16]} Bxc3 {[%emt 0:00:42]} 7. Bxc3 {[%emt 0:00:07]} Ne4 {[%emt 0:00:19]} 8. Ne2 {[%emt 0:00:19]} b6 {[%emt 0:02:41]} 9. d5 {[%emt 0:00:50]} Ba6 {[%emt 0:06:31]} 10. b3 {[%emt 0:02:31]} Re8 {[%emt 0:13:34]} 11. Bb2 {[%emt 0:29:55]} exd5 {[%emt 0:03:10]} 12. Qxd5 {[%emt 0:03:50]} Nc6 {[%emt 0:00:19]} 13. Ng3 {[%emt 0:03:32]} Nf6 {[%emt 0:04:05]} 14. Qd1 {[%emt 0:01:27]} Ne5 {[%emt 0:05:53]} 15. Be2 {[%emt 0:02:16]} d5 {[%emt 0:01:38]} 16. cxd5 {[%emt 0:03:02]} Bxe2 {[%emt 0:01:02]} 17. Nxe2 {[%emt 0:00:34]} Nxd5 {[%emt 0:06:45]} 18. O-O {[%emt 0:02:07]} Ng4 {[%emt 0:05:50]} 19. Nc3 {[%emt 0:11:16]} Nxc3 {[%emt 0:08:36]} 20. Bxc3 {[%emt 0:00:44]} Qg5 {[%emt 0:00:50]} 21. Qf3 {[%emt 0:00:43]} Ne5 {[%emt 0:07:08]} 22. Qe2 {[%emt 0:01:59]} Ng6 {[%emt 0:00:31]} 23. Qf3 {[%emt 0:04:57]} Nh4 {[%emt 0:02:21]} 24. Qg3 {[%emt 0:01:11]} Qxg3 {[%emt 0:00:57]} 25. hxg3 {[%emt 0:00:06]} Nf5 {[%emt 0:01:17]} 26. Rfd1 {[%emt 0:00:29]} Rad8 {[%emt 0:00:15]} 27. Kf1 {[%emt 0:11:56]} f6 {[%emt 0:01:42]} 28. Rxd8 {[%emt 0:00:40]} Rxd8 {[%emt 0:00:02]} 29. Ke2 {[%emt 0:00:10]} Kf7 {[%emt 0:00:48]} 30. g4 {[%emt 0:01:14]} Nd6 {[%emt 0:01:43]} 31. Rd1 {[%emt 0:01:23]} h6 {[%emt 0:03:04]} 32. a4 {[%emt 0:01:18]} Ke6 {[%emt 0:00:46]} 33. f3 {[%emt 0:01:00]} a6 {[%emt 0:00:13]} 34. e4 {[%emt 0:01:20]} b5 {[%emt 0:01:20]} 35. axb5 {[%emt 0:05:38]} axb5 {[%emt 0:00:04]} 36. b4 {[%emt 0:01:04]} cxb4 {[%emt 0:03:55]} 37. Bxb4 {[%emt 0:00:12]} Nf7 {[%emt 0:00:05]} 38. Ra1 {[%emt 0:01:16]} Ne5 {[%emt 0:06:20]} 39. Ra6+ {[%emt 0:00:43]} Kf7 {[%emt 0:00:19]} 40. Rb6 {[%emt 0:00:00]} Ra8 {[%emt 0:00:00]} 41. Rb7+ {[%emt 0:01:55]} Kg8 {[%emt 0:04:35]} 42. Rxb5 {[%emt 0:00:28]} Ra2+ {[%emt 0:00:06]} 43. Bd2 {[%emt 0:00:37]} Nc4 {[%emt 0:00:06]} 44. Rd5 {[%emt 0:00:04]} Kf7 {[%emt 0:00:10]} 45. Rd4 {[%emt 0:00:15]} Nxd2 {[%emt 0:00:12]} 46. Rxd2 {[%emt 0:00:04]} Ra3 {[%emt 0:00:04]} 47. Rd7+ {[%emt 0:00:21]} Kf8 {[%emt 0:00:20]} 48. Kf2 {[%emt 0:00:06]} Ra2+ {[%emt 0:01:14]} 49. Kg3 {[%emt 0:00:05]} Rb2 {[%emt 0:00:13]} 50. Rd3 {[%emt 0:04:27]} Ke7 {[%emt 0:01:49]} 51. Re3 {[%emt 0:01:12]} Ke6 {[%emt 0:00:37]} 52. Ra3 {[%emt 0:00:14]} Kf7 {[%emt 0:00:23]} 53. f4 {[%emt 0:01:04]} Re2 {[%emt 0:00:15]} 54. Kf3 {[%emt 0:00:05]} Re1 {[%emt 0:00:05]} 55. g3 {[%emt 0:00:17]} Rf1+ {[%emt 0:00:21]} 56. Ke3 {[%emt 0:00:07]} Re1+ {[%emt 0:00:11]} 57. Kd4 {[%emt 0:00:25]} Rd1+ {[%emt 0:00:12]} 58. Rd3 {[%emt 0:01:59]} Ra1 {[%emt 0:00:19]} 59. Rc3 {[%emt 0:01:53]} Rd1+ {[%emt 0:00:16]} 60. Rd3 {[%emt 0:01:25]} Ra1 {[%emt 0:00:20]} 61. e5 {[%emt 0:00:58]} fxe5+ {[%emt 0:01:46]} 62. Kxe5 {[%emt 0:00:07]} Re1+ {[%emt 0:00:13]} 63. Kd4 {[%emt 0:00:04]} Re6 {[%emt 0:00:47]} 64. f5 {[%emt 0:00:42]} Rd6+ {[%emt 0:05:02]} 65. Ke4 {[%emt 0:00:10]} Rxd3 {[%emt 0:00:10]} 66. Kxd3 {[%emt 0:00:04]} Kf6 {[%emt 0:00:05]} 67. Ke4 {[%emt 0:00:05]} Kg5 {[%emt 0:00:06]} 68. Kf3 {[%emt 0:00:03]} h5 {[%emt 0:00:18]} 69. gxh5 {[%emt 0:00:05]} Kxf5 {[%emt 0:00:05]} 70. g4+ {[%emt 0:00:04]} Kg5 {[%emt 0:00:06]} 71. Kg3 {[%emt 0:00:02]} g6 {[%emt 0:00:08]} 72. hxg6 {[%emt 0:00:03]} Kxg6 {[%emt 0:00:04]} 73. g5 {[%emt 0:00:03]} Kxg5 {[%emt 0:00:05]} 1/2-1/2